lending/lending_fUSD_20241025
["ID","MTS","AMOUNT","RATE_DAILY","PERIOD"]
[340824902,1729881048377,-500.0,0.00061792,120]
[340824903,1729881048386,-500.0,0.00061839,120]
[340824904,1729881048395,-3489.43572394,0.0006199,14]
[340824905,1729881048405,-12147.68549742,0.00062,120]
[340824906,1729881048414,-151.0,0.00062,120]
[340824907,1729881048423,-151.0,0.00062,120]
[340824908,1729881048432,-244.10026,0.00062,120]
[340824909,1729881048441,-160.0,0.00062,120]
[340824910,1729881048450,-151.0,0.00062,120]
[340824911,1729881048459,-154.082143,0.00062,120]
[340824912,1729881048468,-500.0,0.00062083,120]
[340824913,1729881048477,-806.02659546,0.00062274,15]
[340824914,1729881048486,-1744.71786197,0.0006237,14]
[340824915,1729881048496,-8928.14147084,0.0006238,2]
[340824916,1729881048505,-1744.71786197,0.00062388,14]
[340824917,1729881048514,-500.0,0.00062398,120]
[340824918,1729881048523,-1000.0,0.00062398,120]
[340824919,1729881048532,-500.0,0.00062398,120]
[340824920,1729881048541,-500.0,0.00062398,120]
[340824921,1729881048550,-500.0,0.00062398,120]
[340824922,1729881048560,-500.0,0.00062398,120]
[340824923,1729881048572,-506.38865247,0.00062398,120]
[340824924,1729881048582,-500.0,0.00062398,120]
[340824925,1729881048591,-321.204428,0.00062498,120]
[340824926,1729881048600,-25448.68502452,0.000625,120]
[340824927,1729881048609,-500.0,0.00062611,120]
[340824928,1729881048620,-1744.71786197,0.00062789,14]
[340824929,1729881048629,-806.02659546,0.00062799,15]
[340824930,1729881048638,-921.9431,0.00062826,2]
[340824931,1729881048648,-414.81360777,0.00062885,120]
[340824932,1729881048659,-3489.43572394,0.00062915,15]
[340824933,1729881048669,-1286.23,0.00062924,120]
[340824934,1729881048678,-500.0,0.00062924,120]
[340824935,1729881048688,-500.0,0.00062924,120]
[340824936,1729881048697,-643.66,0.00062924,120]
[340824937,1729881048706,-500.0,0.00062924,120]
[340824938,1729881048715,-500.0,0.00062924,120]
[340824939,1729881048726,-1062.66,0.00062924,120]
[340824940,1729881048735,-500.0,0.00062924,120]
[340824941,1729881048744,-500.0,0.00062924,120]
[340824942,1729881048753,-500.0,0.00062925,120]
[340824943,1729881048763,-500.0,0.00062925,120]
[340824944,1729881048772,-500.0,0.00062925,120]
[340824945,1729881048781,-509.31770191,0.00062925,120]
[340824946,1729881048790,-645.84567296,0.00062925,120]
[340824947,1729881048800,-500.0,0.00062925,120]
[340824948,1729881048810,-500.0,0.00062925,120]
[340824949,1729881048819,-500.0,0.00062925,2]
[340824950,1729881048828,-500.0,0.00062925,120]
[340824951,1729881048837,-500.0,0.00062925,120]
[340824952,1729881048846,-500.0,0.00062925,120]
[340824953,1729881048855,-500.0,0.00062925,120]
[340824954,1729881048865,-500.0,0.00062925,120]
[340824955,1729881048874,-500.0,0.00062925,120]
[340824956,1729881048883,-500.0,0.00062925,120]
[340824957,1729881048892,-500.0,0.00062925,120]
[340824958,1729881048902,-500.0,0.00062925,120]
[340824959,1729881048911,-500.0,0.00062925,120]
[340824960,1729881048920,-500.0,0.00062925,120]
[340824961,1729881048929,-380.09955828,0.00062925,120]
[340824962,1729881048939,-500.0,0.00062925,120]
[340824963,1729881048948,-500.0,0.00062925,120]
[340824964,1729881048958,-575.05362788,0.00062925,120]
[340824965,1729881048967,-500.0,0.00062925,120]
[340824966,1729881048976,-390.81196459,0.00062987,120]
[340824967,1729881048985,-2109.52,0.00062987,120]
[340824968,1729881048994,-6772.53,0.00062987,120]
[340824969,1729881049003,-500.0,0.00062987,120]
[340824970,1729881049012,-500.0,0.00062987,120]
[340824971,1729881049022,-500.0,0.00062987,21]
[340824972,1729881049031,-500.0,0.00062987,120]
[340824973,1729881049040,-525.54,0.00062987,120]
[340824974,1729881049049,-500.0,0.00062987,120]
[340824975,1729881049059,-500.0,0.00062987,120]
[340824976,1729881049069,-500.0,0.00062987,120]
[340824977,1729881049078,-549.21,0.00062987,120]
[340824978,1729881049087,-581.47283018,0.00062987,120]
[340824979,1729881049096,-500.0,0.00062987,120]
[340824980,1729881049106,-531.17,0.00062987,120]
[340824981,1729881049116,-500.0,0.00062987,120]
[340824982,1729881049125,-500.0,0.00062987,120]
[340824983,1729881049134,-500.0,0.00062988,120]
[340824984,1729881049146,-500.0,0.00062988,120]
[340824985,1729881049156,-500.0,0.00062988,120]
[340824986,1729881049165,-500.0,0.00062988,120]
[340824987,1729881049175,-475.04,0.00062988,120]
[340824988,1729881049184,-500.0,0.00062988,120]
[340824990,1729881049193,-500.0,0.00062988,55]
[340824991,1729881049202,-500.0,0.00062988,120]
[340824992,1729881049211,-500.0,0.00062988,120]
[340824993,1729881049220,-571.3,0.00062988,120]
[340824994,1729881049229,-500.0,0.00062988,120]
[340824995,1729881049238,-500.0,0.00062988,120]
[340824996,1729881049247,-500.0,0.00062988,120]
[340824997,1729881049256,-500.0,0.00062988,120]
[340824998,1729881049265,-402.87445242,0.00062988,120]
[340824999,1729881049274,-500.0,0.00062988,120]
[340825000,1729881049283,-500.0,0.00062988,120]
[340825001,1729881049292,-500.0,0.00062988,120]
[340825002,1729881049301,-500.0,0.00062988,120]
[340825003,1729881049310,-583.96,0.00062988,120]
[340825004,1729881049323,-524.58144381,0.00062988,120]
[340825005,1729881049332,-500.0,0.00062988,120]
[340825006,1729881049341,-500.0,0.00062988,120]
[340825007,1729881049350,-500.0,0.00062988,120]
[340825008,1729881049359,-500.0,0.00062988,120]
[340825009,1729881049370,-501.89,0.00062988,4]
[340825010,1729881049380,-500.0,0.00062988,120]
[340825011,1729881049389,-1000.0,0.00062988,120]
[340825012,1729881049398,-500.0,0.00062988,120]
[340825013,1729881049407,-500.0,0.00062988,120]
[340825014,1729881049417,-500.0,0.00062988,120]
[340825015,1729881049426,-500.0,0.00062988,120]
[340825016,1729881049435,-500.0,0.00062988,120]
[340825017,1729881049444,-725.97,0.00062988,120]
[340825018,1729881049456,-908.34,0.00062988,120]
[340825019,1729881049466,-500.0,0.00062988,120]
[340825020,1729881049475,-1273.26762486,0.00062998,120]
[340825021,1729881049485,-500.0,0.00062998,120]
[340825022,1729881049494,-500.0,0.00062998,120]
[340825023,1729881049503,-500.0,0.00062998,120]
[340825024,1729881049512,-500.0,0.00062998,120]
[340825025,1729881049521,-500.0,0.00062998,120]
[340825026,1729881049530,-500.0,0.00062998,120]
[340825027,1729881049540,-500.0,0.00062999,120]
[340825028,1729881049549,-520.4,0.00062999,120]
[340825029,1729881049558,-1840.05432658,0.00062999,10]
[340825030,1729881049567,-500.0,0.00062999,120]
[340825031,1729881049576,-500.0,0.00062999,120]
[340825032,1729881049586,-500.0,0.00062999,120]
[340825033,1729881049595,-500.0,0.00062999,120]
[340825034,1729881049604,-500.0,0.00062999,120]
[340825035,1729881049615,-500.0,0.00062999,120]
[340825036,1729881049626,-61122.25493607,0.00063,120]
[340825037,1729881049647,-511.99486,0.00063,120]
[340825038,1729881049662,-757.54028546,0.00063,120]
[340825039,1729881049674,-492.66229459,0.00063,120]
[340825040,1729881049685,-1637.77473901,0.00063,120]
[340825110,1729882000155,-176.11,0.00015342,2]
[340825111,1729882000178,-67.77480108,0.00015342,2]
[340825121,1729882231977,-96.40519892,0.00015342,2]
[340825122,1729882231987,-2290.43286288,0.00019078,2]
[340825123,1729882231999,-970.84645821,0.00019078,2]
[340825124,1729882232008,-199.69,0.00019178,2]
[340825125,1729882232017,-1000.0,0.0002,7]
[340825126,1729882232026,-2290.43286287,0.00026107,2]
[340825127,1729882232035,-2290.43286287,0.00033135,2]
[340825128,1729882232044,-968.11,0.00033235,2]
[340825129,1729882232053,-154.75,0.00033235,2]
[340825130,1729882232066,-150.0,0.00034548,10]
[340825131,1729882232075,-2458.08,0.00042635,7]
[340825132,1729882232084,-150.99,0.00042926,2]
[340825133,1729882232093,-180.4,0.00043009,30]
[340825134,1729882232103,-283.33,0.00043199,30]
[340825135,1729882232112,-449.31,0.00043209,2]
[340825136,1729882232121,-5651.01,0.00043209,2]
[340825137,1729882232130,-184.91,0.00043417,2]
[340825138,1729882232141,-212.8289999,0.000449,2]
[340825139,1729882232150,-995.97543,0.00045,120]
[340825140,1729882232159,-483.98,0.0005148,2]
[340825141,1729882232169,-308.94,0.000524,120]
[340825142,1729882232178,-1003.32,0.000524,120]
[340825143,1729882232187,-150.0,0.000525,2]
[340825144,1729882232196,-200.0,0.00053093,2]
[340825145,1729882232205,-1003.32,0.00053365,120]
[340825146,1729882232214,-500.0,0.00053406,2]
[340825147,1729882232224,-654.03,0.00053585,2]
[340825148,1729882232233,-500.0,0.00053694,7]
[340825149,1729882232246,-23900.0,0.00053694,2]
[340825150,1729882232255,-283.33,0.00053698,30]
[340825151,1729882232264,-13519.25,0.00053709,2]
[340825152,1729882232274,-483.98,0.00053744,2]
[340825153,1729882232283,-1500.0,0.00053809,120]
[340825154,1729882232292,-157.0,0.00053851,2]
[340825155,1729882232301,-308.94,0.0005388,120]
[340825156,1729882232311,-441.13,0.00053924,2]
[340825157,1729882232320,-152.69,0.00053938,120]
[340825158,1729882232329,-250.0,0.00054011,120]
[340825159,1729882232339,-1000.0,0.00054032,120]
[340825160,1729882232348,-250.0,0.00054061,120]
[340825161,1729882232357,-327.61,0.00054063,2]
[340825162,1729882232366,-174.944,0.00054087,101]
[340825163,1729882232375,-349.54,0.00054155,2]
[340825165,1729882232384,-186.41,0.00054164,120]
[340825166,1729882232394,-200.0,0.00054206,2]
[340825167,1729882232403,-250.0,0.00054224,120]
[340825168,1729882232521,-150.0,0.00054241,2]
[340825169,1729882232531,-1003.32,0.0005433,120]
[340825170,1729882232540,-922.58,0.000545,2]
[340825171,1729882232549,-1163.38,0.00054649,2]
[340825172,1729882232558,-942.0,0.00054795,120]
[340825173,1729882232567,-653.0,0.00054795,120]
[340825174,1729882232576,-508.0,0.00054795,120]
[340825175,1729882232584,-554.0,0.00054795,120]
[340825176,1729882232593,-508.0,0.00054795,120]
[340825177,1729882232602,-150.999999,0.00055,120]
[340825178,1729882232612,-246.06,0.000551,7]
[340825179,1729882232621,-1004.28,0.00055295,120]
[340825180,1729882232630,-563.535549,0.0005536,120]
[340825181,1729882232639,-1026.63696701,0.00056,57]
[340825182,1729882232648,-483.98,0.00056008,2]
[340825183,1729882232657,-165.12,0.00056169,2]
[340825184,1729882232666,-327.61,0.00056766,2]
[340825185,1729882232675,-483.98,0.00058272,2]
[340825186,1729882232684,-165.12,0.00059259,2]
[340825187,1729882232693,-158.57,0.00059263,2]
[340825188,1729882232702,-171.02,0.00059428,2]
[340825189,1729882232711,-838.55,0.00059442,10]
[340825190,1729882232719,-283.33,0.00059442,30]
[340825191,1729882232728,-500.0,0.00059452,120]
[340825192,1729882232738,-500.0,0.00059452,120]
[340825193,1729882232748,-500.0,0.00059452,120]
[340825194,1729882232757,-500.0,0.00059452,120]
[340825195,1729882232765,-500.0,0.00059452,120]
[340825196,1729882232774,-500.0,0.00059452,120]
[340825197,1729882232783,-500.0,0.00059452,120]
[340825198,1729882232792,-500.0,0.00059452,120]
[340825199,1729882232801,-500.0,0.00059452,120]
[340825200,1729882232810,-500.0,0.00059452,120]
[340825201,1729882232819,-500.0,0.00059452,120]
[340825202,1729882232828,-500.0,0.00059452,120]
[340825203,1729882232837,-168.02589048,0.00059452,120]
[340825204,1729882232846,-499.0,0.00059452,120]
[340825205,1729882232855,-500.0,0.00059452,120]
[340825206,1729882232864,-500.0,0.00059452,120]
[340825207,1729882232874,-500.0,0.00059452,120]
[340825208,1729882232882,-500.0,0.00059452,120]
[340825209,1729882232891,-500.0,0.00059452,120]
[340825210,1729882232900,-500.0,0.00059452,120]
[340825211,1729882232909,-500.0,0.00059452,120]
[340825212,1729882232918,-500.0,0.00059452,120]
[340825213,1729882232927,-1000.0,0.00059452,120]
[340825214,1729882232936,-1087.71884165,0.00059452,120]
[340825215,1729882232946,-500.0,0.00059452,120]
[340825216,1729882232955,-496.77545,0.00059452,120]
[340825217,1729882232964,-500.0,0.00059452,120]
[340825218,1729882232973,-461.94025855,0.00059452,120]
[340825219,1729882232982,-500.0,0.00059452,120]
[340825220,1729882232992,-500.0,0.00059452,120]
[340825221,1729882233001,-500.0,0.00059452,120]
[340825222,1729882233011,-500.0,0.00059452,120]
[340825223,1729882233020,-500.0,0.00059452,120]
[340825224,1729882233029,-500.0,0.00059452,120]
[340825225,1729882233038,-500.0,0.00059452,120]
[340825226,1729882233047,-452.04127365,0.00059452,120]
[340825227,1729882233057,-500.0,0.00059452,120]
[340825228,1729882233069,-500.0,0.00059452,120]
[340825229,1729882233079,-500.0,0.00059452,120]
[340825230,1729882233088,-500.0,0.00059452,120]
[340825231,1729882233097,-500.0,0.00059452,120]
[340825232,1729882233109,-500.0,0.00059452,120]
[340825233,1729882233118,-500.0,0.00059452,120]
[340825234,1729882233128,-500.0,0.00059452,120]
[340825235,1729882233138,-500.0,0.00059452,120]
[340825236,1729882233146,-500.0,0.00059452,120]
[340825237,1729882233155,-500.0,0.00059452,120]
[340825238,1729882233164,-500.0,0.00059452,120]
[340825239,1729882233173,-608.03253077,0.00059452,120]
[340825240,1729882233182,-500.0,0.00059452,120]
[340825241,1729882233191,-178.59817668,0.00059452,120]
[340825242,1729882233201,-500.0,0.00059452,7]
[340825243,1729882233210,-500.0,0.00059452,7]
[340825244,1729882233219,-500.0,0.00059452,7]
[340825245,1729882233228,-500.0,0.00059452,120]
[340825246,1729882233238,-500.0,0.00059452,7]
[340825247,1729882233249,-618.75334915,0.00059452,120]
[340825248,1729882233258,-500.0,0.00059452,120]
[340825249,1729882233268,-500.0,0.00059452,120]
[340825250,1729882233277,-500.0,0.00059452,120]
[340825251,1729882233287,-500.0,0.00059452,120]
[340825252,1729882233296,-500.0,0.00059452,120]
[340825253,1729882233306,-500.0,0.00059452,120]
[340825254,1729882233315,-500.0,0.00059452,120]
[340825255,1729882233325,-500.0,0.00059452,120]
[340825256,1729882233334,-500.0,0.00059452,120]
[340825257,1729882233343,-500.0,0.00059452,120]
[340825258,1729882233353,-500.0,0.00059452,120]
[340825259,1729882233362,-500.0,0.00059452,120]
[340825260,1729882233371,-500.0,0.00059452,120]
[340825261,1729882233381,-500.0,0.00059452,120]
[340825262,1729882233390,-500.0,0.00059452,120]
[340825263,1729882233399,-500.0,0.00059452,120]
[340825264,1729882233408,-500.0,0.00059452,120]
[340825265,1729882233418,-500.0,0.00059452,120]
[340825266,1729882233427,-597.70658502,0.00059452,120]
[340825267,1729882233436,-500.0,0.00059452,2]
[340825268,1729882233445,-500.0,0.00059452,2]
[340825269,1729882233455,-500.0,0.00059452,2]
[340825270,1729882233464,-500.0,0.00059452,2]
[340825271,1729882233473,-500.0,0.00059452,120]
[340825272,1729882233482,-500.0,0.00059452,120]
[340825273,1729882233492,-500.0,0.00059452,120]
[340825274,1729882233501,-500.0,0.00059452,120]
[340825275,1729882233510,-500.0,0.00059452,120]
[340825276,1729882233519,-500.0,0.00059452,120]
[340825277,1729882233528,-500.0,0.00059452,120]
[340825278,1729882233537,-210.30355657,0.00059452,120]
[340825279,1729882233546,-500.0,0.00059452,120]
[340825280,1729882233556,-540.35,0.00059452,120]
[340825281,1729882233565,-500.0,0.00059452,120]
[340825282,1729882233573,-500.0,0.00059452,120]
[340825283,1729882233583,-500.0,0.00059452,120]
[340825284,1729882233592,-500.0,0.00059452,120]
[340825285,1729882233602,-500.0,0.00059452,120]
[340825286,1729882233612,-475.72725347,0.00059452,120]
[340825287,1729882233621,-500.0,0.00059452,120]
[340825288,1729882233630,-500.0,0.00059452,120]
[340825289,1729882233640,-500.0,0.00059452,120]
[340825290,1729882233649,-506.87162609,0.00059452,120]
[340825291,1729882233658,-258.30824855,0.00059452,120]
[340825292,1729882233668,-500.0,0.00059452,120]
[340825293,1729882233677,-500.0,0.00059452,120]
[340825294,1729882233687,-500.0,0.00059452,120]
[340825295,1729882233696,-500.0,0.00059452,120]
[340825296,1729882233705,-755.3,0.00059452,120]
[340825297,1729882233715,-500.0,0.00059452,120]
[340825298,1729882233724,-500.0,0.00059452,120]
[340825299,1729882233733,-500.0,0.00059452,120]
[340825300,1729882233744,-500.0,0.00059452,120]
[340825301,1729882233753,-500.0,0.00059452,120]
[340825302,1729882233762,-500.0,0.00059452,120]
[340825303,1729882233771,-496.77418536,0.00059452,120]
[340825304,1729882233780,-500.0,0.00059452,120]
[340825305,1729882233790,-500.0,0.00059452,120]
[340825306,1729882233799,-500.0,0.00059452,120]
[340825307,1729882233808,-500.0,0.00059452,120]
[340825308,1729882233818,-500.0,0.00059452,120]
[340825309,1729882233828,-500.0,0.00059452,120]
[340825310,1729882233837,-333.43893434,0.00059452,120]
[340825311,1729882233847,-500.0,0.00059452,120]
[340825312,1729882233856,-500.0,0.00059452,120]
[340825313,1729882233865,-500.0,0.00059452,120]
[340825314,1729882233875,-336.98314945,0.00059452,120]
[340825315,1729882233884,-500.0,0.00059452,120]
[340825316,1729882233893,-500.0,0.00059452,120]
[340825317,1729882233903,-500.0,0.00059452,120]
[340825318,1729882233912,-498.84972765,0.00059452,120]
[340825319,1729882233922,-500.0,0.00059452,120]
[340825320,1729882233931,-500.0,0.00059452,120]
[340825321,1729882233940,-500.0,0.00059452,120]
[340825322,1729882233950,-500.0,0.00059452,120]
[340825323,1729882233959,-531.45,0.00059452,120]
[340825324,1729882233968,-531.45,0.00059452,120]
[340825325,1729882233977,-531.45,0.00059452,120]
[340825326,1729882233986,-531.45,0.00059452,120]
[340825327,1729882233997,-570.75,0.00059452,120]
[340825328,1729882234006,-570.75,0.00059452,120]
[340825329,1729882234015,-570.75,0.00059452,120]
[340825330,1729882234025,-570.75,0.00059452,120]
[340825331,1729882234034,-500.0,0.00059452,120]
[340825332,1729882234044,-500.0,0.00059452,120]
[340825333,1729882234053,-500.0,0.00059452,120]
[340825334,1729882234065,-500.0,0.00059452,120]
[340825335,1729882234075,-500.0,0.00059452,120]
[340825336,1729882234084,-510.17516349,0.00059452,120]
[340825337,1729882234094,-500.0,0.00059452,120]
[340825338,1729882234103,-500.0,0.00059452,120]
[340825339,1729882234112,-500.0,0.00059452,120]
[340825340,1729882234122,-471.50144502,0.00059452,120]
[340825341,1729882234131,-500.0,0.00059452,120]
[340825342,1729882234141,-500.0,0.00059452,120]
[340825343,1729882234150,-500.0,0.00059452,120]
[340825344,1729882234160,-500.0,0.00059452,120]
[340825345,1729882234170,-199.1696856,0.00059452,120]
[340825346,1729882234179,-500.0,0.00059452,120]
[340825347,1729882234188,-504.04917278,0.00059452,120]
[340825348,1729882234197,-500.0,0.00059452,120]
[340825349,1729882234207,-327.61,0.00059469,2]
[340825350,1729882234216,-2500.0,0.00059599,2]
[340825351,1729882234226,-1882.86017316,0.00059599,120]
[340825352,1729882234236,-500.0,0.00059608,2]
[340825353,1729882234248,-424.14722744,0.00059699,120]
[340825354,1729882234259,-500.0,0.00059699,120]
[340825355,1729882234268,-500.0,0.00059699,120]
[340825356,1729882234278,-500.0,0.00059699,120]
[340825357,1729882234289,-500.0,0.00059699,120]
[340825358,1729882234299,-500.0,0.00059699,120]
[340825359,1729882234310,-500.0,0.00059699,55]
[340825360,1729882234320,-500.0,0.00059699,120]
[340825361,1729882234330,-500.0,0.00059699,120]
[340825362,1729882234340,-500.0,0.00059699,120]
[340825363,1729882234350,-755.3,0.00059699,120]
[340825364,1729882234360,-500.0,0.00059699,120]
[340825365,1729882234370,-630.83,0.00059699,120]
[340825366,1729882234380,-6490.34,0.00059699,120]
[340825367,1729882234390,-500.0,0.00059699,120]
[340825368,1729882234400,-500.0,0.00059699,120]
[340825369,1729882234409,-500.0,0.00059699,120]
[340825370,1729882234419,-500.0,0.00059699,120]
[340825371,1729882234428,-500.0,0.00059699,21]
[340825372,1729882234438,-591.23,0.00059699,120]
[340825373,1729882234447,-500.0,0.00059699,120]
[340825374,1729882234457,-500.0,0.00059699,120]
[340825375,1729882234466,-500.0,0.00059699,120]
[340825376,1729882234476,-500.0,0.00059699,120]
[340825377,1729882234486,-500.0,0.00059699,120]
[340825378,1729882234496,-500.0,0.00059699,120]
[340825379,1729882234506,-500.0,0.00059699,120]
[340825380,1729882234516,-500.0,0.00059699,120]
[340825381,1729882234526,-500.0,0.00059699,120]
[340825382,1729882234536,-500.0,0.00059699,120]
[340825383,1729882234545,-586.36,0.00059699,120]
[340825384,1729882234554,-500.0,0.00059699,120]
[340825385,1729882234564,-500.0,0.00059699,120]
[340825386,1729882234574,-500.0,0.00059699,120]
[340825387,1729882234584,-500.0,0.00059699,120]
[340825388,1729882234594,-500.0,0.00059699,120]
[340825389,1729882234604,-500.0,0.00059699,120]
[340825390,1729882234614,-516.83,0.00059699,4]
[340825391,1729882234623,-526.33,0.00059699,120]
[340825392,1729882234633,-500.0,0.00059699,120]
[340825393,1729882234642,-500.0,0.00059699,120]
[340825394,1729882234651,-500.0,0.00059699,120]
[340825395,1729882234660,-612.92669596,0.00059699,120]
[340825396,1729882234669,-500.0,0.00059699,120]
[340825397,1729882234679,-605.61,0.00059699,120]
[340825398,1729882234688,-33901.6147,0.000597,2]
[340825399,1729882234697,-500.0,0.00060051,120]
[340825400,1729882234706,-170.01,0.0006009,30]
[340825401,1729882234716,-8172.0,0.000601,120]
[340825402,1729882234725,-500.0,0.00060103,120]
[340825403,1729882234735,-1252.78,0.00060136,120]
[340825404,1729882234747,-602.18551977,0.00060136,120]
[340825405,1729882234757,-500.0,0.00060136,120]
[340825406,1729882234766,-622.03,0.00060136,120]
[340825407,1729882234868,-500.0,0.00060136,120]
[340825408,1729882234879,-500.0,0.00060136,120]
[340825409,1729882234888,-500.0,0.00060136,120]
[340825410,1729882234898,-1133.57,0.00060136,120]
[340825411,1729882234907,-500.0,0.00060136,120]
[340825412,1729882234917,-500.0,0.00060136,120]
[340825413,1729882234926,-500.0,0.00060137,120]
[340825414,1729882234936,-500.0,0.00060171,120]
[340825415,1729882234945,-500.0,0.00060202,120]
[340825416,1729882234955,-500.0,0.0006027,120]
[340825417,1729882234964,-500.0,0.0006027,120]
[340825418,1729882234974,-500.0,0.0006027,120]
[340825419,1729882234983,-500.0,0.0006027,120]
[340825420,1729882234995,-432.91638898,0.0006027,120]
[340825421,1729882235004,-358.02537281,0.0006027,120]
[340825422,1729882235014,-483.98,0.00060536,2]
[340825423,1729882235023,-500.0,0.00060726,120]
[340825424,1729882235033,-1000.0,0.00060785,120]
[340825425,1729882235042,-500.0,0.00060799,120]
[340825426,1729882235051,-500.0,0.00060816,120]
[340825427,1729882235063,-500.0,0.00060829,120]
[340825428,1729882235073,-500.0,0.00060829,120]
[340825429,1729882235082,-500.0,0.00060829,120]
[340825430,1729882235091,-500.0,0.00060829,120]
[340825431,1729882235100,-199.54471604,0.00060829,120]
[340825432,1729882235110,-500.0,0.00060829,120]
[340825433,1729882235119,-500.0,0.00060829,120]
[340825434,1729882235128,-500.0,0.00060829,120]
[340825435,1729882235138,-500.0,0.00060829,120]
[340825436,1729882235148,-379.05532768,0.00060829,120]
[340825437,1729882235157,-500.0,0.00060829,120]
[340825438,1729882235167,-500.0,0.00060829,2]
[340825439,1729882235176,-500.0,0.00060829,120]
[340825440,1729882235185,-500.0,0.00060829,120]
[340825441,1729882235194,-205.05,0.00061,14]
[340825442,1729882235203,-500.0,0.00061066,120]
[340825443,1729882235213,-500.0,0.00061165,120]
[340825444,1729882235222,-500.0,0.00061362,120]
[340825445,1729882235232,-500.0,0.00061401,120]
[340825446,1729882235245,-209.0,0.0006146,30]
[340825447,1729882235254,-500.0,0.00061512,120]
[340825448,1729882235263,-500.0,0.00061576,120]
[340825449,1729882235272,-500.0,0.00061617,120]
[340825450,1729882235281,-500.0,0.00061831,120]
[340825451,1729882235290,-500.0,0.00061939,120]
[340825452,1729882235300,-500.0,0.00061946,5]
[340825453,1729882235310,-500.0,0.00061955,5]
[340825454,1729882235320,-500.0,0.00061964,5]
[340825455,1729882235330,-500.0,0.00061972,5]
[340825456,1729882235339,-500.0,0.00061981,5]
[340825457,1729882235349,-500.0,0.0006199,5]
[340825458,1729882235359,-500.0,0.00061999,5]
[340825459,1729882235369,-1160.0,0.00062,120]
[340825460,1729882235379,-327.61,0.00062172,2]
[340825461,1729882235388,-165.12,0.00062349,2]
[340825462,1729882235397,-1264.0,0.0006241,120]
[340825463,1729882235406,-950.76,0.0006241,2]
[340825464,1729882235417,-3873.7966682,0.000625,120]
[340825465,1729882235426,-219.82870196,0.0006264,28]
[340825466,1729882235436,-251.55504455,0.00062685,14]
[340825467,1729882235446,-3000.0,0.000627,90]
[340825468,1729882235455,-5870.39,0.000627,120]
[340825469,1729882235464,-757.42,0.0006274,60]
[340825470,1729882235473,-425.03,0.0006274,60]
[340825471,1729882235483,-757.42,0.0006274,60]
[340825472,1729882235495,-425.03,0.0006274,60]
[340825473,1729882235505,-757.42,0.0006274,60]
[340825474,1729882235515,-425.03,0.0006274,60]
[340825475,1729882235524,-425.03,0.0006274,60]
[340825476,1729882235533,-757.42,0.0006274,60]
[340825477,1729882235542,-757.42,0.0006274,60]
[340825478,1729882235551,-425.03,0.0006274,60]
[340825479,1729882235560,-425.03,0.0006274,60]
[340825480,1729882235569,-218.62,0.0006274,60]
[340825481,1729882235579,-425.03,0.0006274,60]